Cogmind - Beta 12 --- EXPLORER MODE // 2023.05.19 @ 17:11:56 Player: Zedlic Result: Destroyed by P-80 Master with Gamma Rifle Performance ------------- Evolutions (7) 3500 Regions Visited (11) 2200 Robots Destroyed (234) 1170 Value Destroyed (9588) 9588 Prototype IDs (24) 480 Alien Tech Used (0) 0 Bonus (450) 450 TOTAL SCORE: 17388 Bonus ------- High Alert Combat Kills 420 Follower Combat Kills 30 Cogmind --------- Core Integrity 0/1300 Matter 300/300 Energy 99/100 System Corruption 11% Temperature Cool (0) Movement Core (50) Location -3/Research Parts ------- > --- POWER (2) -------- (None) > --- PROPULSION (6) --- (None) > --- UTILITY (9) ------ (None) > --- WEAPON (5) ------- (None) > --- INVENTORY (5) ---- (None) Peak State ------------ > --- POWER ------------ Quantum Reactor Quantum Reactor > --- PROPULSION ------- Armored Leg Armored Leg Myomer Leg Myomer Leg Myomer Leg Enhanced Biometal Leg > --- UTILITY ---------- Improved Cryofiber Web Advanced Heat Sink Advanced Cooling System Improved Energy Well Advanced Sensor Array Weapon Mount Advanced Shield Generator Advanced Shield Generator Improved Remote Shield > --- WEAPON ----------- High-powered Shock Rifle Tesla Rifle Compact Ion Cannon Gamma Bomb Array Advanced Remote Datajack > --- INVENTORY -------- Micro Fission Core Antimatter Reactor Flexi-carbon Leg Energy Well Force Rifle [Rating: 145] Favorites ----------- Power Quantum Reactor Engine Light Angular Momentum Engine Power Core Light Fission Core Reactor Quantum Reactor Propulsion Aluminum Leg Leg Aluminum Leg Wheel Armored Huge Wheel Flight Unit Improved VTOL Module Utility Medium Storage Unit Device Improved Cryofiber Web Storage Medium Storage Unit Processor Advanced Targeting Computer Protection Improved Medium Armor Plating Weapon Compact Ion Cannon Energy Gun Force Rifle Energy Cannon Compact Ion Cannon Ballistic Gun Improved Assault Rifle Ballistic Cannon Advanced Assault Cannon Launcher Rocket Array Special Weapon Improved Remote Datajack Build | -11 -10 -9 -8 -7 -7 -6 -5 -5 -5 -4 -3 ------- Run | Jun Mat Mat Mat Fac Sto Fac Fac Was Fac Fac Res Slots Evolved 15 | . 1 2 2 2 . 2 2 . . 2 2 Power 1 | . . . . . . 1 . . . . . Propulsion 4 | . 1 . 1 . . . . . . 2 . Utility 7 | . . . 1 2 . 1 1 . . . 2 Weapon 3 | . . 2 . . . . 1 . . . . Parts Attached 206 | 7 8 27 22 8 38 48 12 . . 17 19 Power 27 | 1 2 4 3 1 3 9 2 . . . 2 Engine 14 | 1 2 2 1 1 3 4 . . . . . Core 10 | . . 2 2 . . 5 . . . . 1 Reactor 3 | . . . . . . . 2 . . . 1 Propulsion 55 | 2 3 5 8 . 14 10 . . . 8 5 Treads . | . . . . . . . . . . . . Leg 52 | 2 3 5 8 . 13 8 . . . 8 5 Wheel 2 | . . . . . . 2 . . . . . Hover . | . . . . . . . . . . . . Flight 1 | . . . . . 1 . . . . . . Utility 46 | 2 1 2 2 4 3 17 8 . . 4 3 Device 27 | . . . 1 3 3 8 8 . . 2 2 Storage 10 | 1 1 1 . . . 4 . . . 2 1 Processor 3 | 1 . 1 1 . . . . . . . . Hackware . | . . . . . . . . . . . . Protection 6 | . . . . 1 . 5 . . . . . Artifact . | . . . . . . . . . . . . Weapon 78 | 2 2 16 9 3 18 12 2 . . 5 9 Energy Gun 19 | . . 5 . . 6 3 . . . 2 3 Energy Cannon 12 | . . 1 . . 3 3 2 . . . 3 Ballistic Gun 11 | 2 2 6 1 . . . . . . . . Ballistic Cannon 13 | . . 1 8 1 2 . . . . . 1 Launcher 21 | . . 3 . 2 7 6 . . . 2 1 Special Weapon 2 | . . . . . . . . . . 1 1 Impact Weapon . | . . . . . . . . . . . . Slashing Weapon . | . . . . . . . . . . . . Piercing Weapon . | . . . . . . . . . . . . Special Melee Weapon . | . . . . . . . . . . . . Unidentified Prototypes 19 | . . 6 1 . 8 1 . . . 1 2 Parts Lost 45 | . . . 2 . 6 5 1 . . 6 25 Power 3 | . . . . . 1 . . . . . 2 Propulsion 15 | . . . 1 . 3 3 . . . 1 7 Utility 11 | . . . . . 1 1 1 . . 1 7 Weapon 16 | . . . 1 . 1 1 . . . 4 9 Highest Loss Streak 18 | . . . 2 . 2 4 1 . . 3 18 To Critical Strikes . | . . . . . . . . . . . . Average Slot Usage (%) 90 | . 98 94 96 98 98 89 85 88 88 79 71 Engine 4 | . 11 4 . 6 6 6 1 . . . . Core 2 | . . 5 8 . . 4 1 . . . . Reactor 2 | . . . . . . . 7 11 11 10 6 Leg 20 | . 36 30 32 28 27 16 . . . 7 21 Wheel 2 | . . . . . . 3 11 11 11 5 . Device 15 | . . . 5 13 19 17 26 27 27 25 22 Storage 8 | . 12 10 8 7 7 9 11 11 11 8 6 Processor 4 | . 12 10 8 7 7 2 . . . . . Energy Gun 4 | . . 2 . . 4 7 5 5 5 5 4 Energy Cannon 6 | . . . . . 3 9 16 22 22 9 3 Ballistic Gun 5 | . 24 26 2 . . . . . . . . Ballistic Cannon 5 | . . 2 22 21 16 . . . . . . Launcher 4 | . . 2 7 6 3 6 2 . . 3 1 Naked Turns 118 | . . . . . . . . . . . 118 Heaviest Build 171 | 17 29 32 40 55 53 133 171 171 171 171 107 Greatest Support 137 | 20 30 30 52 61 69 62 56 56 56 121 137 Greatest Overweight (x) 5 | . 1 1 . . 2 2 3 3 3 5 1 Average Overweight (x) . | . . . . . . . 2 3 3 2 . Largest Inventory Capacity 25 | 10 15 15 10 10 10 25 25 25 25 25 5 Average Capacity 12 | 8 11 11 10 10 10 12 25 25 25 18 5 Most Carried 25 | 7 15 15 10 10 10 10 22 24 24 25 5 Average Carried 10 | 3 10 10 9 8 9 9 16 23 24 17 2 Final Capacity 25 | 10 15 10 10 10 10 25 25 25 25 5 5 Final Carried 24 | 7 15 9 10 8 10 10 22 24 24 5 . Class Distribution -------------------- 55% | Hacker-Gunner 25% | Scavenger-Gunner 13% | Hacker-Mutant Dominant Class ---------------- Hacker-Mutant | -10/Materials Hacker-Gunner | -9/Materials Hacker-Gunner | -8/Materials Hacker-Gunner | -7/Factory Scavenger-Gunner | -7/Storage Scavenger-Gunner | -6/Factory Hacker-Gunner | -5/Factory Hacker-Gunner | -5/Waste Hacker-Gunner | -5/Factory Hacker-Gunner | -4/Factory Hacker-Mutant | -3/Research Resources | -11 -10 -9 -8 -7 -7 -6 -5 -5 -5 -4 -3 ----------- Run | Jun Mat Mat Mat Fac Sto Fac Fac Was Fac Fac Res Matter Collected 5339 | 207 128 782 742 237 1624 938 145 20 . 256 260 Remotely 122 | . . . . . . 122 . . . . . Salvage Created 10193 | . 173 1490 683 93 1941 2257 950 273 . 1234 1099 Parts 510 | . 12 111 44 9 82 105 45 6 . 50 46 Haulers Intercepted 10 | . 2 3 1 . 3 1 . . . . . Recyclers Shooed 6 | . . . . . . . 1 . . . 5 Parts Field Recycled . | . . . . . . . . . . . . Retrieved Matter . | . . . . . . . . . . . . Parts Self-Destructed . | . . . . . . . . . . . . Prevented . | . . . . . . . . . . . . Kills | -11 -10 -9 -8 -7 -7 -6 -5 -5 -5 -4 -3 ------- Run | Jun Mat Mat Mat Fac Sto Fac Fac Was Fac Fac Res Combat Hostiles Destroyed 185 | . 4 29 23 4 49 32 13 1 . 18 12 Guns 58 | . 4 24 1 . 10 9 2 . . 3 5 Cannons 95 | . . 3 18 4 34 16 10 1 . 7 2 AOE 25 | . . 2 4 . 5 5 . . . 5 4 Classes Destroyed 16 | . 3 5 1 1 4 1 . 1 . . . Worker 9 | . . . . . 3 5 . . . . 1 Builder 10 | . . 1 2 . 1 3 1 . . 2 . Hauler 10 | . 2 3 1 . 3 1 . . . . . Recycler 6 | . . 2 1 . 1 1 . . . . 1 Operator 6 | . . 1 1 . 1 1 1 . . . 1 Watcher 11 | . 1 5 1 . 2 2 . . . . . Swarmer 33 | . 4 8 7 3 4 3 . . . 2 2 Grunt 74 | . . 13 8 . 25 15 2 . . 7 4 Brawler 4 | . . . . . 4 . . . . . . Duelist 3 | . . . . . 1 . . . . 1 1 Protector 2 | . . . . . 2 . . . . . . Sentry 36 | . . 8 7 . 10 5 4 . . 2 . Hunter 14 | . . . 1 . 2 3 3 . . 4 1 Programmer 16 | . . . . 1 1 5 4 . . 2 3 Behemoth 2 | . . . . . . 1 . . . . 1 Compactor 1 | . . . . . . . . 1 . . . Best Kill Streak 8 | . 5 8 8 3 8 6 3 1 . 5 6 Combat Bots Only 8 | . 4 6 6 3 8 3 3 1 . 5 5 Max Kills in Single Turn 5 | . 2 2 3 2 3 5 2 1 . 3 3 Gunslinging 1 | . 1 1 . . . . . . . . . Exploded 3 | . . 2 1 . 2 2 . . . 3 2 Melee . | . . . . . . . . . . . . Uniques/NPCs Destroyed . | . . . . . . . . . . . . Combat | -11 -10 -9 -8 -7 -7 -6 -5 -5 -5 -4 -3 -------- Run | Jun Mat Mat Mat Fac Sto Fac Fac Was Fac Fac Res Damage Taken 10588 | . 65 507 659 26 2181 1448 649 . . 790 4263 Core 2177 | . 14 92 82 7 175 150 234 . . 110 1313 Absorbed by Shields 729 | . . . . . . . . . . 54 675 Core Remaining (%) 84 | 100 94 77 85 . 74 82 . . 76 90 . Volleys Fired 373 | . 16 59 50 3 85 67 19 5 . 37 32 Largest 5 | . 2 4 3 3 4 4 5 5 . 5 4 Hottest 439 | . 40 164 132 144 234 296 439 439 . 439 325 Shots Fired 1227 | . 32 196 133 9 309 221 89 27 1 105 105 Gun 494 | . 32 182 8 . 72 81 19 6 . 34 60 Cannon 645 | . . 13 117 9 221 115 62 21 1 55 31 Launcher 86 | . . 1 8 . 16 25 8 . . 16 12 Special 2 | . . . . . . . . . . . 2 Kinetic 518 | . 32 168 125 9 184 . . . . . . Thermal 530 | . . 18 . . 85 196 67 22 . 87 55 Explosive 30 | . . 1 8 . 16 5 . . . . . Electromagnetic 147 | . . 9 . . 24 20 22 5 1 18 48 Robot Hit Streak 52 | . 15 24 45 3 48 52 39 19 . 33 31 Robot Miss Streak 3 | . 2 2 3 1 2 2 2 1 . 3 2 Penetration Max . | . . . . . . . . . . . . Secondary Targets 4 | . 1 3 . . . . . . . . . Max Gunslinging Chain 1 | . 1 1 . . . . . . . . . Shots Hit Robots 872 | . 25 131 90 4 222 162 59 23 . 71 85 Core Hits 450 | . 12 62 37 4 125 89 27 5 . 34 55 Critical Kills 10 | . . 1 . . 1 2 2 . . 2 2 Critical Parts Destroyed 6 | . 1 . . . . 1 3 . . . 1 Critical Strikes 44 | . 1 1 7 . 15 7 5 1 . 3 4 Burn 10 | . . . . . 6 4 . . . . . Meltdown 4 | . . . . . 1 1 1 . . 1 . Destroy 13 | . 1 1 . . . 2 4 1 . 1 3 Blast 15 | . . . 7 . 8 . . . . . . Corrupt 2 | . . . . . . . . . . 1 1 Melee Attacks . | . . . . . . . . . . . . Impact . | . . . . . . . . . . . . Slashing . | . . . . . . . . . . . . Piercing . | . . . . . . . . . . . . Sneak Attacks . | . . . . . . . . . . . . Combat Hostiles . | . . . . . . . . . . . . Follow-up Attacks . | . . . . . . . . . . . . Damage Inflicted 27077 | . 198 2106 2485 143 6984 5968 2098 735 . 3573 2787 Guns 7442 | . 198 1783 154 . 1332 1609 450 142 . 649 1125 Cannons 12853 | . . 168 1897 143 4085 2553 1353 593 . 1325 736 Explosions 6776 | . . 155 434 . 1567 1806 289 . . 1599 926 Melee . | . . . . . . . . . . . . Ramming 6 | . . . . . . . 6 . . . . Kinetic 7154 | . 198 1506 2051 143 3256 . . . . . . Thermal 13799 | . . 333 . . 1870 4651 1774 730 . 2872 1569 Explosive 2730 | . . 88 434 . 1415 793 . . . . . Electromagnetic 3388 | . . 179 . . 443 524 318 5 . 701 1218 Impact . | . . . . . . . . . . . . Slashing . | . . . . . . . . . . . . Piercing . | . . . . . . . . . . . . Highest Corruption 11 | . . . 2 . 2 1 2 11 11 1 11 Average Corruption 2 | . . . 2 . 1 1 1 7 11 1 5 Corruption Purged . | . . . . . . . . . . . . Corruption Blocked . | . . . . . . . . . . . . Effects 55 | . . . 7 . 15 9 3 5 3 . 13 Message Errors 8 | . . . 1 . 2 1 1 . . . 3 Matter Fused 14 | . . . 1 . 5 4 . 1 1 . 2 Heat Flow Errors 7 | . . . . . 1 2 1 . . . 3 Energy Discharges 10 | . . . 1 . 3 2 1 2 1 . . Data Loss (minor) 4 | . . . 2 . 1 . . . . . 1 Data Loss (major) 5 | . . . 1 . 1 . . . . . 3 Misfires 4 | . . . . . 1 . . 2 1 . . Misdirections 1 | . . . . . . . . . . . 1 Weapon Failures 2 | . . . 1 . 1 . . . . . . Overload Shots . | . . . . . . . . . . . . Overflow Damage 565 | . . 7 60 . 166 153 76 . . 86 17 Projectiles 273 | . . . 19 . 140 44 43 . . 10 17 Explosions 292 | . . 7 41 . 26 109 33 . . 76 . Melee . | . . . . . . . . . . . . Knockbacks 51 | . . . 18 . 33 . . . . . . Impact . | . . . . . . . . . . . . Kinetic 42 | . . . 17 . 25 . . . . . . Secondary 9 | . . . 1 . 8 . . . . . . Self-Inflicted Damage 565 | . . 26 . . 168 260 31 . . 2 78 Shots 42 | . . 1 . . 9 12 3 . . 1 16 Rammed 1 | . . . . . . . 1 . . . . Targets Rammed 1 | . . . . . . . 1 . . . . Kicked . | . . . . . . . . . . . . Crushed . | . . . . . . . . . . . . Highest Temperature 624 | . . 204 399 54 474 370 624 264 . 252 211 Average Temperature 94 | . . 49 112 26 78 122 162 112 . 79 58 Received Heat Transfer 3892 | . . 333 279 . 1188 540 63 . . 100 1389 Effects 4 | . . . . . 2 . 2 . . . . Shutdowns 1 | . . . . . 1 . . . . . . Interference 1 | . . . . . . . 1 . . . . Damage (major) 1 | . . . . . 1 . . . . . . Damage (core) 1 | . . . . . . . 1 . . . . Siege Activations . | . . . . . . . . . . . . Robots Corrupted 4 | . . . . . . 1 . . . 2 1 Combat Hostiles 4 | . . . . . . 1 . . . 2 1 Parts Fried 17 | . . . . . 1 1 3 . . 5 7 Impact Corruptions . | . . . . . . . . . . . . Robots Melted 4 | . . . . . 1 1 1 . . 1 . Combat Hostiles 3 | . . . . . . 1 1 . . 1 . Parts Melted 44 | . . . . . 4 16 11 1 . 7 5 Heat Transferred 18745 | . . 692 . . 3144 6854 2162 920 . 3069 1904 Parts Sabotaged . | . . . . . . . . . . . . Parts Stolen . | . . . . . . . . . . . . Parts Stripped . | . . . . . . . . . . . . Power Chain Reactions 16 | . . 2 . . 1 1 5 . . 3 4 Missiles Intercepted . | . . . . . . . . . . . . Alert | -11 -10 -9 -8 -7 -7 -6 -5 -5 -5 -4 -3 ------- Run | Jun Mat Mat Mat Fac Sto Fac Fac Was Fac Fac Res Peak Influence 755 | . 151 541 553 194 755 366 227 44 21 639 500 Initial 249 | . . 45 . 91 4 249 69 44 21 7 60 Average 196 | . 92 196 302 98 233 167 123 39 21 310 247 Maximum Alert Level 3 | . . 2 2 . 3 1 1 . . 2 2 Low Security (%) 55 | 100 100 50 14 100 43 59 97 100 100 29 30 Level 1 36 | . . 42 60 . 42 40 2 . . 46 60 Level 2 7 | . . 7 25 . 11 . . . . 23 8 Level 3 . | . . . . . 2 . . . . . . Level 4 . | . . . . . . . . . . . . Level 5 . | . . . . . . . . . . . . High Security . | . . . . . . . . . . . . Max Security . | . . . . . . . . . . . . Squads Dispatched 38 | . . 2 2 1 15 8 1 . . 5 4 Investigation 7 | . . . 1 . 2 . . . . 3 1 Extermination 12 | . . . . 1 1 5 1 . . 2 2 Reinforcement 14 | . . 2 1 . 7 3 . . . . 1 Assault 2 | . . . . . 2 . . . . . . Garrison 3 | . . . . . 3 . . . . . . Intercept . | . . . . . . . . . . . . Searches Triggered . | . . . . . . . . . . . . Construction Impeded 6 | . . . 1 . 3 1 . . . . 1 Haulers Reinforced 3 | . . . . . 2 1 . . . . . Active Scanning Responses . | . . . . . . . . . . . . Cargo Convoy Interrupts . | . . . . . . . . . . . . Stealth | -11 -10 -9 -8 -7 -7 -6 -5 -5 -5 -4 -3 --------- Run | Jun Mat Mat Mat Fac Sto Fac Fac Was Fac Fac Res Distress Signals 9 | . 1 1 . . 2 2 . . . . 3 Communications Jammed . | . . . . . . . . . . . . Distress Signals . | . . . . . . . . . . . . Times Spotted 281 | . 8 38 30 5 59 41 13 6 . 27 54 Peak Tracking Total 15 | . 5 5 5 3 6 4 4 4 . 6 15 Tactical Retreats 22 | . . 1 2 . 3 2 . . . 4 10 Traps | -11 -10 -9 -8 -7 -7 -6 -5 -5 -5 -4 -3 ------- Run | Jun Mat Mat Mat Fac Sto Fac Fac Was Fac Fac Res Traps Triggered 12 | . 3 1 . . 2 2 3 . . . 1 Indirectly 1 | . . . . . . . . . . . 1 Trap Hack Attempts . | . . . . . . . . . . . . Triggered . | . . . . . . . . . . . . Disarmed . | . . . . . . . . . . . . Reprogrammed 10 | . . 6 . . . . . . . 4 . Reused 3 | . . . . . . . . . . 3 . Traps Extracted . | . . . . . . . . . . . . Installed . | . . . . . . . . . . . . Triggered 3 | . . . . . . . . . . 3 . Machines | -11 -10 -9 -8 -7 -7 -6 -5 -5 -5 -4 -3 ---------- Run | Jun Mat Mat Mat Fac Sto Fac Fac Was Fac Fac Res Machines Disabled 46 | . . 1 . . 9 20 6 . . 9 1 Max in Single Turn 4 | . . 1 . . 2 4 2 . . 3 1 Machines Repaired . | . . . . . . . . . . . . Machines Sabotaged . | . . . . . . . . . . . . Overloaded Fab Kills . | . . . . . . . . . . . . Hacking | -11 -10 -9 -8 -7 -7 -6 -5 -5 -5 -4 -3 --------- Run | Jun Mat Mat Mat Fac Sto Fac Fac Was Fac Fac Res Machines Accessed 26 | . 1 6 3 . 7 3 2 . . 4 . Terminals 22 | . 1 5 3 . 7 3 1 . . 2 . Fabricators 3 | . . . . . . . 1 . . 2 . Repair Stations . | . . . . . . . . . . . . Recycling Units 1 | . . 1 . . . . . . . . . Scanalyzers . | . . . . . . . . . . . . Garrison Access . | . . . . . . . . . . . . Total Hacks 60 | . 3 16 10 . 14 5 2 . . 10 . Successful 37 | . 2 11 4 . 11 2 2 . . 5 . Failed 23 | . 1 5 6 . 3 3 . . . 5 . Catastrophic 3 | . . 1 . . . . . . . 2 . Database Lockouts . | . . . . . . . . . . . . Manual . | . . . . . . . . . . . . Terminals 50 | . 3 12 10 . 14 5 1 . . 5 . Fabricators 6 | . . . . . . . 1 . . 5 . Repair Stations . | . . . . . . . . . . . . Recycling Units 4 | . . 4 . . . . . . . . . Scanalyzers . | . . . . . . . . . . . . Garrison Access . | . . . . . . . . . . . . Terminal Hacks 32 | . 2 8 4 . 11 2 1 . . 4 . Record 3 | . . 1 . . 1 . . . . 1 . Robot Analysis 1 | . . 1 . . . . . . . . . Prototype ID Bank 4 | . . 2 1 . 1 . . . . . . Open Door 5 | . . . . . 5 . . . . . . Branch Access Points 2 | . . . . . . 1 1 . . . . Emergency Access Points 2 | . 1 . . . . 1 . . . . . Alert Level 2 | . . 1 1 . . . . . . . . Unreport Threat 1 | . . 1 . . . . . . . . . Locate Traps 1 | . . . . . 1 . . . . . . Reprogram Traps 2 | . . 1 . . . . . . . 1 . Dispatch Records 1 | . . . 1 . . . . . . . . Security Status 1 | . . . 1 . . . . . . . . Transport Status 1 | . . . . . 1 . . . . . . Investigation Status 1 | . . . . . 1 . . . . . . Extermination Status 1 | . . . . . 1 . . . . . . Recall Investigation 1 | . . . . . . . . . . 1 . Recall Reinforcements 1 | . . . . . . . . . . 1 . Recall Assault 1 | . . 1 . . . . . . . . . Zone Layout 1 | . 1 . . . . . . . . . . Fabricator Hacks 2 | . . . . . . . 1 . . 1 . Build 2 | . . . . . . . 1 . . 1 . Repair Station Hacks . | . . . . . . . . . . . . Recycling Unit Hacks 3 | . . 3 . . . . . . . . . Recycle Component 1 | . . 1 . . . . . . . . . Process 1 | . . 1 . . . . . . . . . Retrieve Matter 1 | . . 1 . . . . . . . . . Scanalyzer . | . . . . . . . . . . . . Garrison Access Hacks . | . . . . . . . . . . . . Unauthorized Hacks . | . . . . . . . . . . . . Terminals . | . . . . . . . . . . . . Fabricators . | . . . . . . . . . . . . Repair Stations . | . . . . . . . . . . . . Recycling Units . | . . . . . . . . . . . . Scanalyzers . | . . . . . . . . . . . . Garrison Access . | . . . . . . . . . . . . Data Cores Recovered 5 | . . 1 1 . . 1 1 . . . 1 Used 1 | . . . . . . . 1 . . . . Hacking Detections 16 | . . 4 2 . 3 3 . . . 4 . Full Trace Events 5 | . . 1 1 . . . . . . 3 . Feedback Events . | . . . . . . . . . . . . Feedback Blocked . | . . . . . . . . . . . . Robot Schematics Acquired . | . . . . . . . . . . . . Robots Built . | . . . . . . . . . . . . Authchips . | . . . . . . . . . . . . Time 50 | . . . . . . . . . . 50 . Total Robot Build Rating . | . . . . . . . . . . . . Part Schematics Acquired . | . . . . . . . . . . . . Parts Built 2 | . . . . . . . 2 . . . . Authchips . | . . . . . . . . . . . . Time 139 | . . . . . . . 139 . . . . Total Part Build Rating 18 | . . . . . . . 18 . . . . Parts Repaired . | . . . . . . . . . . . . Time . | . . . . . . . . . . . . Parts Recycled 1 | . . 1 . . . . . . . . . Recycled Matter 102 | . . 102 . . . . . . . . . Retrieved Matter 102 | . . 102 . . . . . . . . . Retrieved Components . | . . . . . . . . . . . . Parts Scanalyzed . | . . . . . . . . . . . . Part Schematics Acquired . | . . . . . . . . . . . . Parts Damaged . | . . . . . . . . . . . . Bothacking | -11 -10 -9 -8 -7 -7 -6 -5 -5 -5 -4 -3 ------------ Run | Jun Mat Mat Mat Fac Sto Fac Fac Was Fac Fac Res Used RIF Installer . | . . . . . . . . . . . . Robots Hacked 1 | . . . . . . . . . . . 1 Non-combat 1 | . . . . . . . . . . . 1 Combat . | . . . . . . . . . . . . Robot Hacks Applied 2 | . . . . . . . . . . . 2 no_distress 1 | . . . . . . . . . . . 1 find_recycling 1 | . . . . . . . . . . . 1 Relay Couplers Released . | . . . . . . . . . . . . Fabnet Peak Effective % . | . . . . . . . . . . . . Robots Rewired . | . . . . . . . . . . . . Allies Hacked . | . . . . . . . . . . . . Hacks Repelled . | . . . . . . . . . . . . Allies | -11 -10 -9 -8 -7 -7 -6 -5 -5 -5 -4 -3 -------- Run | Jun Mat Mat Mat Fac Sto Fac Fac Was Fac Fac Res Total Allies 3 | . . . . . 2 . . 1 . . . Largest Group 2 | . . . . . 2 . . 1 . . . Highest-Rated Group 62 | . . . . . 62 . . 31 . . . Highest-Rated Ally 31 | . . . . . 31 . . 31 . . . Total Orders . | . . . . . . . . . . . . Ally Attacks 20 | . . . . . 2 . . 18 . . . Total Damage 402 | . . . . . 43 . . 359 . . . Kills 1 | . . . . . . . . 1 . . . Allies Corrupted . | . . . . . . . . . . . . Allies Melted . | . . . . . . . . . . . . Intel | -11 -10 -9 -8 -7 -7 -6 -5 -5 -5 -4 -3 ------- Run | Jun Mat Mat Mat Fac Sto Fac Fac Was Fac Fac Res Robot Analysis Total 1 | . . 1 . . . . . . . . . Derelict Logs Recovered . | . . . . . . . . . . . . Drone Launches . | . . . . . . . . . . . . Drone Recoveries . | . . . . . . . . . . . . Exploration | -11 -10 -9 -8 -7 -7 -6 -5 -5 -5 -4 -3 ------------- Run | Jun Mat Mat Mat Fac Sto Fac Fac Was Fac Fac Res Turns Passed 10329 | 109 382 1651 947 456 1542 2277 1049 208 61 853 794 Spaces Moved 6525 | 80 262 1054 593 337 739 1510 597 130 43 509 671 Core 242 | 6 . . . . . . . . . . 236 Treads . | . . . . . . . . . . . . Legs 4659 | 74 262 1054 593 337 739 991 . . . 174 435 Wheels 1624 | . . . . . . 519 597 130 43 335 . Hover . | . . . . . . . . . . . . Flight . | . . . . . . . . . . . . Fastest Speed 50 | 50 120 120 120 122 120 112 130 145 145 120 50 Average Speed 124 | 114 120 128 120 122 127 126 136 145 145 138 93 Slowest Speed 260 | 120 190 190 122 122 260 190 145 145 145 190 170 Overloaded Moves . | . . . . . . . . . . . . Propulsion Burnouts . | . . . . . . . . . . . . Robots Hopped 1 | . . . . . . . . 1 . . . Cave-ins Triggered 2 | . . . 1 . 1 . . . . . . Exploration Rate (%) 37 | 4 46 79 58 7 88 47 14 79 2 6 20 Regions Visited 11 Branch Regions 1 Pre-discovered Areas . | . . . . . . . . . . . . Known Exits Taken 9 | 1 1 1 1 1 1 1 . . 1 1 . Unknown Exits Taken . | . . . . . . . . . . . . Scrap Searched . | . . . . . . . . . . . . Spaces Dug . | . . . . . . . . . . . . Terrain Destroyed 621 | . . 16 92 1 275 137 23 1 . 63 13 Melee . | . . . . . . . . . . . . Projectile 98 | . . 2 17 1 46 13 8 1 . 9 1 AOE 523 | . . 14 75 . 229 124 15 . . 54 12 Terrain Rammed . | . . . . . . . . . . . . Walls Destroyed . | . . . . . . . . . . . . Machines Disabled . | . . . . . . . . . . . . Actions | -11 -10 -9 -8 -7 -7 -6 -5 -5 -5 -4 -3 --------- Run | Jun Mat Mat Mat Fac Sto Fac Fac Was Fac Fac Res Total 7873 | 93 301 1232 719 375 1124 1730 778 135 42 576 768 Wait 543 | . . 34 39 19 224 53 135 . . . 39 Move 6512 | 79 261 1053 591 336 738 1509 597 127 42 508 671 Hop 1 | . . . . . . . . 1 . . . Pick Up 80 | 7 11 15 6 2 11 10 10 2 . 6 . Fast Attach 71 | 7 6 16 2 3 8 11 4 . . 6 8 Attach 38 | . . 3 3 . 5 10 2 . . 8 7 Detach 26 | . . 6 . 1 5 9 2 . . 2 1 Swap 98 | . 2 8 17 5 25 27 6 . . 3 5 Drop 129 | . 5 38 10 6 23 34 2 . . 6 5 Fire 373 | . 16 59 50 3 85 67 19 5 . 37 32 Melee . | . . . . . . . . . . . . Ram 1 | . . . . . . . 1 . . . . Kick . | . . . . . . . . . . . . Crush . | . . . . . . . . . . . . Escape Stasis 1 | . . . 1 . . . . . . . . Rewire . | . . . . . . . . . . . . Trap . | . . . . . . . . . . . . Miscellaneous . | . . . . . . . . . . . . Route ------- -11/Junkyard -10/Materials (discovered 2 exits: *Mat / *Min) -9/Materials (discovered 5 exits: *Mat x3 / *Min x2) -8/Materials (discovered 2 exits: *Fac x2) -7/Factory -7/Storage -6/Factory (discovered 3 exits: *Fac / *Low x2) -5/Factory (discovered 2 exits: *Upp x2) -5/Waste -5/Factory -4/Factory -3/Research History --------- Turn | Location | Event 14 | -11/Junkyard | Identified exit to Materials 14 | -11/Junkyard | Discovered exit to Materials (range 14) 110 | -11/Junkyard | Entered Materials 110 | -10/Materials | Evolved 1 slot: Propulsion x1 288 | -10/Materials | Identified exit to Mines 288 | -10/Materials | Discovered exit to Mines (range 6) 317 | -10/Materials | Build established: Hacker-Mutant 466 | -10/Materials | Identified exit to Materials 466 | -10/Materials | Discovered exit to Materials (range 11) 492 | -10/Materials | Entered another Materials area 492 | -9/Materials | Evolved 2 slots: Weapon x2 686 | -9/Materials | Identified exit to Mines 686 | -9/Materials | Discovered exit to Mines (range 12) 1181 | -9/Materials | Build established: Hacker-Gunner 1231 | -9/Materials | Discovered exit to Mines (range 8) 1307 | -9/Materials | Identified exit to Materials 1307 | -9/Materials | Discovered exit to Materials (range 10) 1517 | -9/Materials | Discovered exit to Materials (range 16) 1598 | -9/Materials | Build established: Scavenger-Gunner 2114 | -9/Materials | Discovered exit to Materials (range 4) 2143 | -9/Materials | Entered another Materials area 2143 | -8/Materials | Evolved 2 slots: Propulsion x1, Utility x1 2187 | -8/Materials | Build established: Hacker-Gunner 2452 | -8/Materials | Identified exit to Factory 2452 | -8/Materials | Discovered exit to Factory (range 15) 2602 | -8/Materials | Crushed by falling debris 2981 | -8/Materials | Discovered exit to Factory (range 15) 3090 | -8/Materials | Entered Factory 3090 | -7/Factory | Evolved 2 slots: Utility x2 3373 | -7/Factory | Identified exit to Storage 3373 | -7/Factory | Discovered exit to Storage (range 5) 3546 | -7/Factory | Entered Storage 4062 | -7/Storage | Crushed by falling debris 4095 | -7/Storage | Destroyed 8 combat bots 4604 | -7/Storage | Met a pair of Derelict thieves 4782 | -7/Storage | Build established: Scavenger-Gunner 4799 | -7/Storage | Garrison activated, responded to threat 4967 | -7/Storage | Found Prototype Launcher 4968 | -7/Storage | Identified Rocket Array 4983 | -7/Storage | Found Rocket Array 4986 | -7/Storage | Found Rocket Array 4989 | -7/Storage | Found Rocket Array 5082 | -7/Storage | Identified exit to Factory 5082 | -7/Storage | Discovered exit to Factory (range 6) 5088 | -7/Storage | Entered Factory 5088 | -6/Factory | Evolved 2 slots: Power x1, Utility x1 5154 | -6/Factory | Found Rocket Array 5158 | -6/Factory | Found Rocket Array 5162 | -6/Factory | Lost 4 parts (3n1u) 5166 | -6/Factory | Found Rocket Array 6079 | -6/Factory | Spotted B-75 Beast 6083 | -6/Factory | Destroyed B-75 Beast 6535 | -6/Factory | Identified exit to Lower Caves 6979 | -6/Factory | Build established: Hacker-Gunner 7359 | -6/Factory | Identified exit to Factory 7359 | -6/Factory | Discovered exit to Factory (range 5) 7365 | -6/Factory | Entered another Factory area 7365 | -5/Factory | Evolved 2 slots: Utility x1, Weapon x1 7379 | -5/Factory | Identified exit to Upper Caves 7379 | -5/Factory | Discovered exit to Upper Caves (range 8) 7691 | -5/Factory | Fabricated Quantum Reactor (x2) 8414 | -5/Factory | Sucked down chute 8414 | -5/Factory | Entered Waste 8415 | -5/Waste | Met a frightened Derelict 8429 | -5/Waste | EMP discharged 8459 | -5/Waste | Spotted C-40 Crusher 8477 | -5/Waste | Allies destroyed C-40 Crusher 8486 | -5/Waste | Spotted C-40 Crusher 8486 | -5/Waste | Spotted C-40 Crusher 8494 | -5/Waste | Destroyed C-40 Crusher 8498 | -5/Waste | Spotted C-40 Crusher 8512 | -5/Waste | Spotted C-40 Crusher 8529 | -5/Waste | EMP discharged 8529 | -5/Waste | System corruption reached 10% 8540 | -5/Waste | Spotted C-40 Crusher 8609 | -5/Waste | Identified exit to Factory 8609 | -5/Waste | Discovered exit to Factory (range 10) 8622 | -5/Waste | Entered Factory 8678 | -5/Factory | Identified exit to Factory 8678 | -5/Factory | Discovered exit to Factory (range 4) 8683 | -5/Factory | Entered another Factory area 8683 | -4/Factory | Evolved 2 slots: Propulsion x2 8976 | -4/Factory | Identified exit to Research 8976 | -4/Factory | Discovered exit to Research (range 12) 9125 | -4/Factory | Lost 3 parts (1n1u1w) 9536 | -4/Factory | Entered Research 9536 | -3/Research | Evolved 2 slots: Utility x2 9627 | -3/Research | Found Gamma Bomb Array 9680 | -3/Research | Spotted B-86 Titan 9770 | -3/Research | Destroyed B-86 Titan 10040 | -3/Research | Lost 3 parts (1p2w) 10212 | -3/Research | Released all parts (5) 10243 | -3/Research | Lost 18 parts (1p7n5u5w) 10268 | -3/Research | Core integrity fell below 50% 10273 | -3/Research | System corruption reached 10% 10285 | -3/Research | Core integrity fell below 20% 10330 | -3/Research | Destroyed by P-80 Master with Gamma Rifle Last Messages --------------- 10206_ P-80 Master resets A-15 Conveyor, system corruption cleaned. 10210_ Flexi-carbon Leg destroyed. 10212_ Enh. Biometal Leg destroyed. 10212_ Released Mic. Fission Core. 10212_ Released Energy Well. 10212_ Released Weapon Mount. 10212_ Released Imp. Energy Well. 10212_ Released Antimatter Reactor. 10214_ P-80 Master resets L-61 Swordsman, system corruption cleaned. 10231_ System corrupted: Substantial component data lost. 10236_ Recycling Unit disabled. 10237_ Fabricator disabled. 10255_ System corrupted: Substantial component data lost. 10278_ Critical hit (Burn: +50). 10279_ Penetrated by Slug. 10279_ Slug penetrates Fabricator. 10282_ Penetrated by Slug. 10286_ ALERT: Rogue bot located, Programmers report to Research Zone 3T. 10288_ System corrupted: Heat flow error (+236). [Achievement: This Is Interesting...] Map ----- +----------------------------------------------------+ | ######??????# #? #???? | | ############ # !]#???? | | # [ #???? | | ! + #???? | | #######+############ # #???? | | #???? #??????????# # #???? | | #?? #??????????########? #???? | | ## #???????????????????#########???? | | ## #???????????????????????????????? | | ## #???????????????????????????????? | | ## #???????????????????????????????? | | ## #?????????########???###????????? | | ### #?????????# + #????????? | | ??# ??????????# # #????????? | | ##############+##### # """ #????????? | | + """ #????????? | | ## """ #????????? | | ## * #????????? | | ## #????????? | | #######+########## #? #????????? | | ????? ???????# pp #??? ??????????? | | ???# ?????# ######+####????????? | | ???#! / #????# #????????? | | ???# #????# #????????? | | ???#""" #????# #????????? | | ???#""" = #????# @ #????????? | | ???#""" #????## T#######+####????????? | | ???# / #?????####???? ??????????? | | ?????? #??????????? ????????? | | ??????#######??????????# #???????? | | ???????????????????????#""" ! #???????? | | ???????????????????????#""" #???????? | | ???????????????????????#""" #???????? | | ???????????????????????# #???????? | | ????????????????????????? #???????? | | ?????????????????????????#########???????? | | ?????????????????????????????????????????? | | ?????????????????????????????????????????? | | ?????????????????????????????????????????? | | ?????????????????????????????????????????? | | | | | | | | | | | | | | | | | | | | | +----------------------------------------------------+ Best States ------------- Heat Dissipation 96 Energy Generation 45 Energy Capacity 1350 Matter Stores 300 Matter Capacity 300 Sight Range 16 Robot Scan Range 16 Terrain Scan Density 10 Additional Mass Support 9 Base Temperature (-) 150 Armor Coverage 225 Resistance: KI 35 Resistance: TH 35 Resistance: EX 35 Resistance: EM 60 Resistance: I 35 Resistance: S 35 Resistance: P 35 Evasion (%) 55 Targeting Accuracy 20 Matter Filtering 30 Particle Charging 20 Offensive Hacking 20 Item Schematics ----------------- None Robot Schematics ------------------ None Fabricated ------------ Quantum Reactor | x2 | -5/Factory | Preloaded Alien Tech Used ----------------- None Achievements -------------- This Is Interesting... Challenges ------------ None Game ------ Seed WaveDeepSheargun Manual? 0 Play Time 03:18:50 Cumulative 56.9 hours Start 2023.05.16 @ 23:23:42 End 2023.05.19 @ 17:11:56 Sessions 5 Manual Loads 0 Difficulty Explorer Special Mode None Game No. 27 Rogue 7 Adventurer 16 Explorer 4 Win Type - Total 0 Types 0/0/0/0/0/0/0/0/0 Lore% 25 Gallery% 35 Achievement% 32 Wizard Run 0 Options --------- ASCII 0 Keyboard 1 Movement Vi Keybinds 0 Fullscreen 1 Font 18/SmallcapsGlow Map View 76x50 Tactical HUD 1 Map Filters NONE Filters NONE Steam 1 RUN: 9c82a215-0f05-4a96-a0eb-3c31b9242f33